[Event "Titled Tuesday Blitz July 18 Late 2023"]
[White "Sos Andreu, Eric"]
[Black "Olsen, Filip Boe"]
[WhiteFideId "22247017"]
[BlackFideId "1440640"]
[WhiteElo "2487"]
[BlackElo "2637"]
[Result "0-1"]
[Round "5"]
[TimeControl "180+2"]
[Date "2023.07.18"]
[WhiteClock "0:00:00"]
[BlackClock "0:00:14"]
[Board "71"]

1. d4 {[%clk 0:03:00]}  d5 {[%clk 0:02:49]} 2. c4 {[%clk 0:03:00]}  e6 {[%clk 0:02:49]} 3. g3 {[%clk 0:03:00]}  Nf6 {[%clk 0:02:47]} 4. Bg2 {[%clk 0:03:00]}  dxc4 {[%clk 0:02:48]} 5. Nf3 {[%clk 0:02:59]}  Nbd7 {[%clk 0:02:47]} 6. O-O {[%clk 0:02:58]}  Nb6 {[%clk 0:02:47]} 7. Nbd2 {[%clk 0:02:52]}  Bd6 {[%clk 0:02:44]} 8. Qc2 {[%clk 0:02:49]}  Bd7 {[%clk 0:02:39]} 9. Nxc4 {[%clk 0:02:45]}  Nxc4 {[%clk 0:02:40]} 10. Qxc4 {[%clk 0:02:45]}  Bc6 {[%clk 0:02:40]} 11. Bg5 {[%clk 0:02:45]}  h6 {[%clk 0:02:37]} 12. Bxf6 {[%clk 0:02:41]}  Qxf6 {[%clk 0:02:37]} 13. Rac1 {[%clk 0:02:36]}  O-O {[%clk 0:02:36]} 14. Rfd1 {[%clk 0:02:33]}  a5 {[%clk 0:02:33]} 15. b3 {[%clk 0:02:29]}  a4 {[%clk 0:02:29]} 16. Nd2 {[%clk 0:02:01]}  Bxg2 {[%clk 0:02:20]} 17. Kxg2 {[%clk 0:02:02]}  axb3 {[%clk 0:02:20]} 18. axb3 {[%clk 0:02:02]}  Ra2 {[%clk 0:02:12]} 19. Ne4 {[%clk 0:02:01]}  Qf5 {[%clk 0:02:10]} 20. Nxd6 {[%clk 0:01:55]}  cxd6 {[%clk 0:02:10]} 21. d5 {[%clk 0:01:38]}  Re8 {[%clk 0:01:49]} 22. dxe6 {[%clk 0:01:14]}  Rxe6 {[%clk 0:01:50]} 23. Qd3 {[%clk 0:01:03]}  Qxd3 {[%clk 0:01:30]} 24. Rxd3 {[%clk 0:00:46]}  Rexe2 {[%clk 0:01:27]} 25. Rf3 {[%clk 0:00:47]}  Rec2 {[%clk 0:01:21]} 26. Rd1 {[%clk 0:00:42]}  Rd2 {[%clk 0:01:14]} 27. Rc1 {[%clk 0:00:41]}  Rac2 {[%clk 0:01:05]} 28. Re1 {[%clk 0:00:40]}  Re2 {[%clk 0:01:03]} 29. Rd1 {[%clk 0:00:35]}  Re6 {[%clk 0:01:03]} 30. Rd5 {[%clk 0:00:31]}  Rc5 {[%clk 0:01:01]} 31. Rd4 {[%clk 0:00:28]}  Rb5 {[%clk 0:01:00]} 32. Rc4 {[%clk 0:00:25]}  Rf6 {[%clk 0:00:50]} 33. Rxf6 {[%clk 0:00:23]}  gxf6 {[%clk 0:00:51]} 34. Rd4 {[%clk 0:00:20]}  Rxb3 {[%clk 0:00:47]} 35. Rxd6 {[%clk 0:00:20]}  Kg7 {[%clk 0:00:48]} 36. Rd8 {[%clk 0:00:17]}  Rb1 {[%clk 0:00:47]} 37. Rb8 {[%clk 0:00:16]}  b5 {[%clk 0:00:47]} 38. h4 {[%clk 0:00:16]}  h5 {[%clk 0:00:43]} 39. Kf3 {[%clk 0:00:15]}  b4 {[%clk 0:00:43]} 40. Kg2 {[%clk 0:00:15]}  b3 {[%clk 0:00:42]} 41. Kf3 {[%clk 0:00:15]}  Kg6 {[%clk 0:00:41]} 42. Rb5 {[%clk 0:00:14]}  b2 {[%clk 0:00:31]} 43. Kg2 {[%clk 0:00:15]}  f5 {[%clk 0:00:31]} 44. Rb6+ {[%clk 0:00:14]}  Kg7 {[%clk 0:00:31]} 45. Kf3 {[%clk 0:00:12]}  Kf8 {[%clk 0:00:29]} 46. Kg2 {[%clk 0:00:11]}  Ke7 {[%clk 0:00:29]} 47. Kf3 {[%clk 0:00:11]}  Kd7 {[%clk 0:00:29]} 48. Kg2 {[%clk 0:00:11]}  f4 {[%clk 0:00:29]} 49. gxf4 {[%clk 0:00:09]}  Kc7 {[%clk 0:00:29]} 50. Rb3 {[%clk 0:00:07]}  Kc6 {[%clk 0:00:29]} 51. Rb8 {[%clk 0:00:06]}  Kd5 {[%clk 0:00:29]} 52. Kf3 {[%clk 0:00:04]}  Kc4 {[%clk 0:00:20]} 53. Rc8+ {[%clk 0:00:04]}  Kd3 {[%clk 0:00:20]} 54. Rd8+ {[%clk 0:00:04]}  Kc2 {[%clk 0:00:21]} 55. Rc8+ {[%clk 0:00:04]}  Kd2 {[%clk 0:00:21]} 56. Rd8+ {[%clk 0:00:05]}  Ke1 {[%clk 0:00:21]} 57. Re8+ {[%clk 0:00:03]}  Kf1 {[%clk 0:00:21]} 58. Rb8 {[%clk 0:00:04]}  Kg1 {[%clk 0:00:21]} 59. Kg3 {[%clk 0:00:03]}  Kh1 {[%clk 0:00:21]} 60. Kf3 {[%clk 0:00:02]}  Kh2 {[%clk 0:00:21]} 61. f5 {[%clk 0:00:02]}  Kh3 {[%clk 0:00:21]} 62. Kf4 {[%clk 0:00:02]}  Kxh4 {[%clk 0:00:21]} 63. Rb7 {[%clk 0:00:01]}  Kh3 {[%clk 0:00:19]} 64. Kf3 {[%clk 0:00:01]}  h4 {[%clk 0:00:20]} 65. Rb6 {[%clk 0:00:01]}  Kh2 {[%clk 0:00:20]} 66. Rb5 {[%clk 0:00:02]}  h3 {[%clk 0:00:20]} 67. Rb4 {[%clk 0:00:02]}  Kg1 {[%clk 0:00:20]} 68. Rg4+ {[%clk 0:00:02]}  Kf1 {[%clk 0:00:18]} 69. Rb4 {[%clk 0:00:02]}  h2 {[%clk 0:00:17]} 70. Rh4 {[%clk 0:00:02]}  Kg1 {[%clk 0:00:17]} 71. Rg4+ {[%clk 0:00:03]}  Kh1 {[%clk 0:00:16]} 72. Rb4 {[%clk 0:00:02]}  Rc1 {[%clk 0:00:14]} 73. Rxb2 {[%clk 0:00:00]}  Kg1 {[%clk 0:00:14]} 0-1


[Site "https://www.chess.com"]

[Event "Titled Tuesday Blitz July 18 Late 2023"]
[White "Rama, Tejas"]
[Black "David, Bogdan-Emanuel"]
[WhiteFideId "30907381"]
[BlackFideId "1229907"]
[WhiteElo "2468"]
[BlackElo "2598"]
[Result "0-1"]
[Round "5"]
[TimeControl "180+2"]
[Date "2023.07.18"]
[WhiteClock "0:00:00"]
[BlackClock "0:01:37"]
[Board "76"]

1. d4 {[%clk 0:00:07]}  d6 {[%clk 0:02:58]} 2. c4 {[%clk 0:00:08]}  e5 {[%clk 0:02:58]} 3. dxe5 {[%clk 0:00:08]}  dxe5 {[%clk 0:02:59]} 4. Qxd8+ {[%clk 0:00:08]}  Kxd8 {[%clk 0:03:00]} 5. Nc3 {[%clk 0:00:09]}  Be6 {[%clk 0:03:00]} 6. g3 {[%clk 0:00:09]}  Bxc4 {[%clk 0:03:00]} 7. Bg2 {[%clk 0:00:10]}  c6 {[%clk 0:02:59]} 8. Nf3 {[%clk 0:00:11]}  f6 {[%clk 0:02:59]} 9. O-O {[%clk 0:00:10]}  Nd7 {[%clk 0:02:58]} 10. Rd1 {[%clk 0:00:11]}  Kc7 {[%clk 0:02:55]} 11. b3 {[%clk 0:00:10]}  Be6 {[%clk 0:02:55]} 12. Bb2 {[%clk 0:00:11]}  Nh6 {[%clk 0:02:39]} 13. Rac1 {[%clk 0:00:11]}  Nf7 {[%clk 0:02:39]} 14. Nd5+ {[%clk 0:00:10]}  Kb8 {[%clk 0:02:35]} 15. Ne3 {[%clk 0:00:10]}  Be7 {[%clk 0:02:30]} 16. Nd2 {[%clk 0:00:07]}  Rd8 {[%clk 0:02:24]} 17. f4 {[%clk 0:00:07]}  Bc5 {[%clk 0:02:20]} 18. Nf1 {[%clk 0:00:06]}  Bb6 {[%clk 0:02:10]} 19. f5 {[%clk 0:00:05]}  Bxf5 {[%clk 0:02:09]} 20. Kh1 {[%clk 0:00:03]}  Be6 {[%clk 0:02:08]} 21. Rd3 {[%clk 0:00:02]}  Nf8 {[%clk 0:01:56]} 22. Rxd8+ {[%clk 0:00:02]}  Nxd8 {[%clk 0:01:57]} 23. Ba3 {[%clk 0:00:03]}  Nd7 {[%clk 0:01:50]} 24. Nc4 {[%clk 0:00:03]}  Bc7 {[%clk 0:01:47]} 25. Rd1 {[%clk 0:00:03]}  Nf7 {[%clk 0:01:44]} 26. Be7 {[%clk 0:00:01]}  Kc8 {[%clk 0:01:41]} 27. Nfe3 {[%clk 0:00:00]}  Bd8 {[%clk 0:01:37]} 0-1


[Site "https://www.chess.com"]

[Event "Titled Tuesday Blitz July 18 Late 2023"]
[White "Horcajuelo Rocamora, Martin"]
[Black "Piesik, Piotr"]
[WhiteFideId "24573027"]
[BlackFideId "1136194"]
[WhiteElo "2465"]
[BlackElo "2592"]
[Result "0-1"]
[Round "5"]
[TimeControl "180+2"]
[Date "2023.07.18"]
[WhiteClock "0:02:13"]
[BlackClock "0:02:51"]
[Board "77"]

1. e3 {[%clk 0:02:55]}  g6 {[%clk 0:02:59]} 2. d4 {[%clk 0:02:54]}  Bg7 {[%clk 0:03:00]} 3. b3 {[%clk 0:02:53]}  d6 {[%clk 0:03:00]} 4. Bb2 {[%clk 0:02:53]}  Nd7 {[%clk 0:03:00]} 5. Nf3 {[%clk 0:02:50]}  e5 {[%clk 0:03:00]} 6. Nbd2 {[%clk 0:02:48]}  Qe7 {[%clk 0:02:59]} 7. dxe5 {[%clk 0:02:42]}  Nxe5 {[%clk 0:02:59]} 8. e4 {[%clk 0:02:43]}  Nxf3+ {[%clk 0:02:57]} 9. Qxf3 {[%clk 0:02:35]}  Bxb2 {[%clk 0:02:57]} 10. Rb1 {[%clk 0:02:31]}  Bg7 {[%clk 0:02:56]} 11. Bd3 {[%clk 0:02:28]}  Nf6 {[%clk 0:02:57]} 12. h3 {[%clk 0:02:27]}  O-O {[%clk 0:02:56]} 13. O-O {[%clk 0:02:13]}  Bd7 {[%clk 0:02:51]} 0-1


[Site "https://www.chess.com"]

[Event "Titled Tuesday Blitz July 18 Late 2023"]
[White "Gaal, Zsoka"]
[Black "brm72"]
[WhiteFideId "777765"]
[WhiteElo "2457"]
[BlackElo "2582"]
[Result "1-0"]
[Round "5"]
[TimeControl "180+2"]
[Date "2023.07.18"]
[WhiteClock "0:00:04"]
[BlackClock "0:00:05"]
[Board "80"]

1. Nf3 {[%clk 0:03:00]}  c5 {[%clk 0:02:59]} 2. b3 {[%clk 0:02:58]}  Nc6 {[%clk 0:02:57]} 3. Bb2 {[%clk 0:02:59]}  Nf6 {[%clk 0:02:55]} 4. g3 {[%clk 0:02:55]}  d6 {[%clk 0:02:54]} 5. Bg2 {[%clk 0:02:56]}  e5 {[%clk 0:02:55]} 6. O-O {[%clk 0:02:56]}  g6 {[%clk 0:02:55]} 7. e3 {[%clk 0:02:52]}  Bg7 {[%clk 0:02:55]} 8. d4 {[%clk 0:02:52]}  exd4 {[%clk 0:02:43]} 9. exd4 {[%clk 0:02:53]}  O-O {[%clk 0:02:43]} 10. d5 {[%clk 0:02:45]}  Ne7 {[%clk 0:02:43]} 11. c4 {[%clk 0:02:46]}  a5 {[%clk 0:02:42]} 12. Nc3 {[%clk 0:02:44]}  Bf5 {[%clk 0:02:30]} 13. Re1 {[%clk 0:02:36]}  Ne4 {[%clk 0:02:28]} 14. Qc1 {[%clk 0:02:34]}  Nxc3 {[%clk 0:02:20]} 15. Bxc3 {[%clk 0:02:35]}  a4 {[%clk 0:02:18]} 16. Bxg7 {[%clk 0:02:33]}  Kxg7 {[%clk 0:02:19]} 17. Qc3+ {[%clk 0:02:31]}  Kg8 {[%clk 0:02:19]} 18. Ng5 {[%clk 0:02:29]}  Nc8 {[%clk 0:02:09]} 19. h4 {[%clk 0:02:22]}  h6 {[%clk 0:02:08]} 20. Ne4 {[%clk 0:02:22]}  Bxe4 {[%clk 0:02:08]} 21. Bxe4 {[%clk 0:02:21]}  Nb6 {[%clk 0:02:04]} 22. h5 {[%clk 0:02:19]}  g5 {[%clk 0:02:04]} 23. Bc2 {[%clk 0:02:06]}  Nd7 {[%clk 0:01:57]} 24. Qd3 {[%clk 0:02:03]}  Nf6 {[%clk 0:01:57]} 25. bxa4 {[%clk 0:01:55]}  Qd7 {[%clk 0:01:42]} 26. Rab1 {[%clk 0:01:51]}  Rfe8 {[%clk 0:01:40]} 27. Kg2 {[%clk 0:01:40]}  Kg7 {[%clk 0:01:40]} 28. Re6 {[%clk 0:01:12]}  Rxe6 {[%clk 0:01:13]} 29. dxe6 {[%clk 0:01:10]}  Qxe6 {[%clk 0:01:14]} 30. Rxb7 {[%clk 0:01:08]}  Kg8 {[%clk 0:01:15]} 31. Qf3 {[%clk 0:01:01]}  Re8 {[%clk 0:00:41]} 32. a5 {[%clk 0:01:00]}  g4 {[%clk 0:00:20]} 33. Qf4 {[%clk 0:00:53]}  Nxh5 {[%clk 0:00:18]} 34. Qd2 {[%clk 0:00:40]}  Qxc4 {[%clk 0:00:15]} 35. Kh2 {[%clk 0:00:05]}  Re2 {[%clk 0:00:14]} 36. Bb3 {[%clk 0:00:03]}  Rxd2 {[%clk 0:00:05]} 37. Bxc4 {[%clk 0:00:02]}  d5 {[%clk 0:00:06]} 38. Bb5 {[%clk 0:00:01]}  Rxa2 {[%clk 0:00:05]} 39. a6 {[%clk 0:00:02]}  Rxf2+ {[%clk 0:00:04]} 40. Kg1 {[%clk 0:00:02]}  Ra2 {[%clk 0:00:05]} 41. a7 {[%clk 0:00:02]}  Nxg3 {[%clk 0:00:05]} 42. Rb8+ {[%clk 0:00:02]}  Kg7 {[%clk 0:00:05]} 43. a8=Q {[%clk 0:00:02]}  Rxa8 {[%clk 0:00:05]} 44. Rxa8 {[%clk 0:00:03]}  Ne4 {[%clk 0:00:05]} 45. Rd8 {[%clk 0:00:04]}  d4 {[%clk 0:00:05]} 46. Rd5 {[%clk 0:00:03]}  Kf6 {[%clk 0:00:02]} 47. Bd3 {[%clk 0:00:04]}  Nf2 {[%clk 0:00:02]} 48. Bc4 {[%clk 0:00:03]}  Ne4 {[%clk 0:00:02]} 49. Kg2 {[%clk 0:00:04]}  Ng3 {[%clk 0:00:03]} 50. Kxg3 {[%clk 0:00:04]}  Kg6 {[%clk 0:00:02]} 51. Rxc5 {[%clk 0:00:04]}  f5 {[%clk 0:00:03]} 52. Rd5 {[%clk 0:00:05]}  Kg5 {[%clk 0:00:04]} 53. Rxd4 {[%clk 0:00:05]}  h5 {[%clk 0:00:05]} 54. Rd8 {[%clk 0:00:05]}  h4+ {[%clk 0:00:06]} 55. Kg2 {[%clk 0:00:05]}  Kf4 {[%clk 0:00:07]} 56. Rd4+ {[%clk 0:00:04]}  Ke3 {[%clk 0:00:07]} 57. Rd5 {[%clk 0:00:04]}  f4 {[%clk 0:00:07]} 58. Re5+ {[%clk 0:00:04]}  Kd4 {[%clk 0:00:07]} 59. Rg5 {[%clk 0:00:05]}  g3 {[%clk 0:00:06]} 60. Rg4 {[%clk 0:00:04]}  Ke3 {[%clk 0:00:07]} 61. Bd5 {[%clk 0:00:04]}  h3+ {[%clk 0:00:07]} 62. Kxh3 {[%clk 0:00:04]}  Kf2 {[%clk 0:00:05]} 63. Rxf4+ {[%clk 0:00:04]} 1-0


[Site "https://www.chess.com"]

[Event "Titled Tuesday Blitz July 18 Late 2023"]
[White "Fonseca Manrique, Enrique"]
[Black "Castella Garcia, Fausto"]
[WhiteFideId "5114330"]
[BlackFideId "3501922"]
[WhiteElo "2576"]
[BlackElo "2439"]
[Result "1-0"]
[Round "5"]
[TimeControl "180+2"]
[Date "2023.07.18"]
[WhiteClock "0:02:00"]
[BlackClock "0:00:57"]
[Board "81"]

1. e4 {[%clk 0:02:58]}  c5 {[%clk 0:02:59]} 2. Nc3 {[%clk 0:02:58]}  Nc6 {[%clk 0:02:58]} 3. f4 {[%clk 0:02:58]}  g6 {[%clk 0:02:59]} 4. Nf3 {[%clk 0:02:59]}  Bg7 {[%clk 0:02:59]} 5. Bb5 {[%clk 0:03:00]}  Nd4 {[%clk 0:02:59]} 6. Ba4 {[%clk 0:03:00]}  a6 {[%clk 0:02:54]} 7. d3 {[%clk 0:03:00]}  b5 {[%clk 0:02:52]} 8. Bb3 {[%clk 0:03:00]}  d6 {[%clk 0:02:41]} 9. O-O {[%clk 0:02:52]}  Nf6 {[%clk 0:02:41]} 10. Nxd4 {[%clk 0:02:47]}  cxd4 {[%clk 0:02:42]} 11. Ne2 {[%clk 0:02:47]}  Ng4 {[%clk 0:02:26]} 12. f5 {[%clk 0:02:35]}  e6 {[%clk 0:02:04]} 13. h3 {[%clk 0:02:28]}  Ne3 {[%clk 0:02:03]} 14. Bxe3 {[%clk 0:02:28]}  dxe3 {[%clk 0:02:04]} 15. fxe6 {[%clk 0:02:25]}  Bxe6 {[%clk 0:01:49]} 16. Bxe6 {[%clk 0:02:24]}  fxe6 {[%clk 0:01:50]} 17. c3 {[%clk 0:02:24]}  d5 {[%clk 0:01:22]} 18. Qb3 {[%clk 0:02:12]}  Qd6 {[%clk 0:01:16]} 19. a4 {[%clk 0:02:03]}  O-O-O {[%clk 0:00:57]} 20. axb5 {[%clk 0:02:00]} 1-0


[Site "https://www.chess.com"]

[Event "Titled Tuesday Blitz July 18 Late 2023"]
[White "NLLO777"]
[Black "Grebeniuk, Semen"]
[BlackFideId "14117509"]
[WhiteElo "2436"]
[BlackElo "2574"]
[Result "1-0"]
[Round "5"]
[TimeControl "180+2"]
[Date "2023.07.18"]
[WhiteClock "0:01:41"]
[BlackClock "0:00:23"]
[Board "82"]

1. Nf3 {[%clk 0:03:00]}  Nf6 {[%clk 0:02:59]} 2. e3 {[%clk 0:02:57]}  g6 {[%clk 0:02:58]} 3. b3 {[%clk 0:02:58]}  Bg7 {[%clk 0:02:59]} 4. Bb2 {[%clk 0:02:58]}  O-O {[%clk 0:02:59]} 5. Be2 {[%clk 0:02:58]}  c5 {[%clk 0:02:59]} 6. O-O {[%clk 0:02:59]}  b6 {[%clk 0:02:59]} 7. c4 {[%clk 0:02:58]}  Bb7 {[%clk 0:02:59]} 8. d4 {[%clk 0:02:56]}  cxd4 {[%clk 0:02:58]} 9. Nxd4 {[%clk 0:02:56]}  d6 {[%clk 0:02:57]} 10. Nc3 {[%clk 0:02:56]}  Nc6 {[%clk 0:02:56]} 11. Bf3 {[%clk 0:02:54]}  Rc8 {[%clk 0:02:53]} 12. Rc1 {[%clk 0:02:52]}  Qc7 {[%clk 0:02:52]} 13. Nd5 {[%clk 0:02:51]}  Qd7 {[%clk 0:02:40]} 14. Nxc6 {[%clk 0:02:47]}  Bxc6 {[%clk 0:02:39]} 15. Nxf6+ {[%clk 0:02:47]}  Bxf6 {[%clk 0:02:35]} 16. Bxf6 {[%clk 0:02:44]}  exf6 {[%clk 0:02:36]} 17. Bxc6 {[%clk 0:02:36]}  Rxc6 {[%clk 0:02:36]} 18. Rc3 {[%clk 0:02:23]}  Qe6 {[%clk 0:02:34]} 19. Rd3 {[%clk 0:02:21]}  a5 {[%clk 0:02:30]} 20. Qf3 {[%clk 0:02:20]}  Rfc8 {[%clk 0:02:23]} 21. Rfd1 {[%clk 0:02:20]}  a4 {[%clk 0:02:22]} 22. h3 {[%clk 0:02:17]}  Kg7 {[%clk 0:02:20]} 23. Rd5 {[%clk 0:02:16]}  Ra8 {[%clk 0:01:55]} 24. Qf4 {[%clk 0:02:03]}  axb3 {[%clk 0:01:54]} 25. axb3 {[%clk 0:02:02]}  Rd8 {[%clk 0:01:44]} 26. Qd4 {[%clk 0:01:58]}  h5 {[%clk 0:01:37]} 27. h4 {[%clk 0:01:57]}  Kf8 {[%clk 0:01:14]} 28. Ra1 {[%clk 0:01:49]}  Rd7 {[%clk 0:01:08]} 29. Ra6 {[%clk 0:01:48]}  Rb7 {[%clk 0:01:03]} 30. Rb5 {[%clk 0:01:46]}  Qg4 {[%clk 0:00:48]} 31. Qxf6 {[%clk 0:01:42]}  Rb8 {[%clk 0:00:29]} 32. Ra7 {[%clk 0:01:41]}  Qe6 {[%clk 0:00:23]} 33. Qh8# {[%clk 0:01:41]} 1-0


[Site "https://www.chess.com"]

[Event "Titled Tuesday Blitz July 18 Late 2023"]
[White "Vlassov, Nikolai"]
[Black "Kovacsy, Barnabas"]
[WhiteFideId "4103360"]
[BlackFideId "769290"]
[WhiteElo "2572"]
[BlackElo "2434"]
[Result "1-0"]
[Round "5"]
[TimeControl "180+2"]
[Date "2023.07.18"]
[WhiteClock "0:01:22"]
[BlackClock "0:02:01"]
[Board "84"]

1. e4 {[%clk 0:03:00]}  c5 {[%clk 0:02:57]} 2. c3 {[%clk 0:03:00]}  d5 {[%clk 0:02:52]} 3. exd5 {[%clk 0:03:00]}  Qxd5 {[%clk 0:02:52]} 4. d4 {[%clk 0:02:59]}  Nf6 {[%clk 0:02:51]} 5. Nf3 {[%clk 0:02:58]}  e6 {[%clk 0:02:50]} 6. a3 {[%clk 0:02:58]}  g6 {[%clk 0:02:46]} 7. Be3 {[%clk 0:02:52]}  cxd4 {[%clk 0:02:44]} 8. Qxd4 {[%clk 0:02:25]}  Nc6 {[%clk 0:02:39]} 9. Qxf6 {[%clk 0:02:20]}  Rg8 {[%clk 0:02:33]} 10. Nbd2 {[%clk 0:02:11]}  Bg7 {[%clk 0:02:26]} 11. Qh4 {[%clk 0:02:07]}  Bd7 {[%clk 0:02:24]} 12. Bc4 {[%clk 0:02:06]}  Qa5 {[%clk 0:02:19]} 13. O-O {[%clk 0:02:01]}  h5 {[%clk 0:02:18]} 14. Ne4 {[%clk 0:01:55]}  Ne5 {[%clk 0:02:14]} 15. Nxe5 {[%clk 0:01:35]}  Bxe5 {[%clk 0:02:13]} 16. Nf6+ {[%clk 0:01:26]}  Bxf6 {[%clk 0:02:13]} 17. Qxf6 {[%clk 0:01:27]}  h4 {[%clk 0:02:10]} 18. Bg5 {[%clk 0:01:23]}  Qc5 {[%clk 0:02:01]} 19. b4 {[%clk 0:01:22]} 1-0


[Site "https://www.chess.com"]

[Event "Titled Tuesday Blitz July 18 Late 2023"]
[White "robertoalejandro10"]
[Black "Rios Escobar, Adan"]
[BlackFideId "3403645"]
[WhiteElo "2567"]
[BlackElo "2431"]
[Result "1-0"]
[Round "5"]
[TimeControl "180+2"]
[Date "2023.07.18"]
[WhiteClock "0:00:21"]
[BlackClock "0:00:02"]
[Board "85"]

1. Nf3 {[%clk 0:03:00]}  Nf6 {[%clk 0:02:53]} 2. b3 {[%clk 0:03:00]}  d6 {[%clk 0:02:52]} 3. Bb2 {[%clk 0:03:00]}  e5 {[%clk 0:02:52]} 4. c4 {[%clk 0:03:00]}  c5 {[%clk 0:02:51]} 5. g3 {[%clk 0:03:00]}  Nc6 {[%clk 0:02:50]} 6. Bg2 {[%clk 0:03:00]}  g6 {[%clk 0:02:49]} 7. O-O {[%clk 0:02:59]}  Bg7 {[%clk 0:02:43]} 8. Nc3 {[%clk 0:03:00]}  O-O {[%clk 0:02:40]} 9. e3 {[%clk 0:03:00]}  h6 {[%clk 0:02:38]} 10. d4 {[%clk 0:03:00]}  cxd4 {[%clk 0:02:24]} 11. exd4 {[%clk 0:03:01]}  e4 {[%clk 0:02:24]} 12. Ne1 {[%clk 0:02:57]}  Bg4 {[%clk 0:02:14]} 13. Qd2 {[%clk 0:02:53]}  Re8 {[%clk 0:02:12]} 14. Nc2 {[%clk 0:02:51]}  Bf3 {[%clk 0:02:04]} 15. Rfe1 {[%clk 0:02:50]}  Bxg2 {[%clk 0:01:45]} 16. Kxg2 {[%clk 0:02:51]}  d5 {[%clk 0:01:43]} 17. Rad1 {[%clk 0:02:51]}  Ne7 {[%clk 0:01:27]} 18. Ne3 {[%clk 0:02:47]}  Rc8 {[%clk 0:01:25]} 19. Re2 {[%clk 0:02:21]}  Qd7 {[%clk 0:01:19]} 20. Rde1 {[%clk 0:02:17]}  h5 {[%clk 0:01:08]} 21. h4 {[%clk 0:02:16]}  Bh6 {[%clk 0:01:08]} 22. Qd1 {[%clk 0:02:05]}  Bxe3 {[%clk 0:01:05]} 23. Rxe3 {[%clk 0:02:06]}  Nf5 {[%clk 0:01:05]} 24. R3e2 {[%clk 0:02:06]}  dxc4 {[%clk 0:01:01]} 25. bxc4 {[%clk 0:01:53]}  Qxd4 {[%clk 0:00:51]} 26. Nxe4 {[%clk 0:01:46]}  Qxb2 {[%clk 0:00:34]} 27. Rxb2 {[%clk 0:01:13]}  Rxe4 {[%clk 0:00:26]} 28. Rxe4 {[%clk 0:01:11]}  Nxe4 {[%clk 0:00:26]} 29. Qd7 {[%clk 0:01:01]}  Rxc4 {[%clk 0:00:21]} 30. Qxb7 {[%clk 0:00:56]}  Nfd6 {[%clk 0:00:18]} 31. Qxa7 {[%clk 0:00:53]}  Rc1 {[%clk 0:00:14]} 32. a4 {[%clk 0:00:52]}  Ra1 {[%clk 0:00:11]} 33. a5 {[%clk 0:00:50]}  Nc4 {[%clk 0:00:09]} 34. Qa8+ {[%clk 0:00:48]}  Kh7 {[%clk 0:00:06]} 35. Qxe4 {[%clk 0:00:17]}  Nxb2 {[%clk 0:00:06]} 36. Qe5 {[%clk 0:00:17]}  Ra2 {[%clk 0:00:05]} 37. Qd5 {[%clk 0:00:17]}  Ra3 {[%clk 0:00:01]} 38. Qxf7+ {[%clk 0:00:17]}  Kh6 {[%clk 0:00:01]} 39. Qf8+ {[%clk 0:00:17]}  Kh7 {[%clk 0:00:01]} 40. Qxa3 {[%clk 0:00:18]}  Nc4 {[%clk 0:00:01]} 41. Qe7+ {[%clk 0:00:18]}  Kh6 {[%clk 0:00:01]} 42. a6 {[%clk 0:00:19]}  g5 {[%clk 0:00:01]} 43. Qe6+ {[%clk 0:00:19]}  Kh7 {[%clk 0:00:01]} 44. Qxc4 {[%clk 0:00:19]}  g4 {[%clk 0:00:01]} 45. Qe6 {[%clk 0:00:19]}  Kg7 {[%clk 0:00:02]} 46. a7 {[%clk 0:00:20]}  Kh7 {[%clk 0:00:01]} 47. a8=Q {[%clk 0:00:20]}  Kg7 {[%clk 0:00:01]} 48. Qb7+ {[%clk 0:00:20]}  Kh8 {[%clk 0:00:02]} 49. Qec8# {[%clk 0:00:21]} 1-0


[Site "https://www.chess.com"]

[Event "Titled Tuesday Blitz July 18 Late 2023"]
[White "Gascon Del Nogal, Jose Rafael"]
[Black "Herman, Daniel"]
[WhiteFideId "3902463"]
[BlackFideId "30935008"]
[WhiteElo "2557"]
[BlackElo "2426"]
[Result "1-0"]
[Round "5"]
[TimeControl "180+2"]
[Date "2023.07.18"]
[WhiteClock "0:00:08"]
[BlackClock "0:00:00"]
[Board "87"]

1. d4 {[%clk 0:03:00]}  Nf6 {[%clk 0:02:56]} 2. Nf3 {[%clk 0:03:00]}  b6 {[%clk 0:02:56]} 3. g3 {[%clk 0:02:51]}  Bb7 {[%clk 0:02:56]} 4. Bg2 {[%clk 0:02:52]}  e6 {[%clk 0:02:56]} 5. O-O {[%clk 0:02:53]}  Be7 {[%clk 0:02:56]} 6. c4 {[%clk 0:02:53]}  O-O {[%clk 0:02:50]} 7. d5 {[%clk 0:02:54]}  exd5 {[%clk 0:02:42]} 8. Nh4 {[%clk 0:02:54]}  Na6 {[%clk 0:02:19]} 9. Nf5 {[%clk 0:02:47]}  Nc5 {[%clk 0:02:16]} 10. cxd5 {[%clk 0:02:45]}  Nfe4 {[%clk 0:01:48]} 11. Bxe4 {[%clk 0:02:23]}  Nxe4 {[%clk 0:01:46]} 12. Qd4 {[%clk 0:02:23]}  Nf6 {[%clk 0:01:43]} 13. Bg5 {[%clk 0:02:21]}  Bc5 {[%clk 0:01:15]} 14. Qd1 {[%clk 0:02:07]}  h6 {[%clk 0:01:03]} 15. Bh4 {[%clk 0:01:57]}  g5 {[%clk 0:00:46]} 16. Nxh6+ {[%clk 0:01:56]}  Kg7 {[%clk 0:00:47]} 17. Bxg5 {[%clk 0:01:55]}  Qe8 {[%clk 0:00:38]} 18. Nf5+ {[%clk 0:01:38]}  Kg6 {[%clk 0:00:37]} 19. Bxf6 {[%clk 0:01:35]}  Kxf6 {[%clk 0:00:34]} 20. Ne3 {[%clk 0:01:29]}  Kg6 {[%clk 0:00:26]} 21. Nc3 {[%clk 0:01:28]}  Bxe3 {[%clk 0:00:25]} 22. fxe3 {[%clk 0:01:27]}  Qxe3+ {[%clk 0:00:26]} 23. Rf2 {[%clk 0:01:27]}  Rae8 {[%clk 0:00:24]} 24. Qa4 {[%clk 0:01:14]}  f5 {[%clk 0:00:17]} 25. Qf4 {[%clk 0:01:02]}  Qxf4 {[%clk 0:00:13]} 26. Rxf4 {[%clk 0:01:03]}  Re3 {[%clk 0:00:13]} 27. Raf1 {[%clk 0:01:00]}  d6 {[%clk 0:00:09]} 28. Kf2 {[%clk 0:00:41]}  Re5 {[%clk 0:00:08]} 29. e4 {[%clk 0:00:38]}  Rfe8 {[%clk 0:00:06]} 30. Rxf5 {[%clk 0:00:32]}  Rxf5+ {[%clk 0:00:07]} 31. exf5+ {[%clk 0:00:33]}  Kxf5 {[%clk 0:00:07]} 32. Re1 {[%clk 0:00:29]}  Rf8 {[%clk 0:00:06]} 33. Re7 {[%clk 0:00:27]}  Kg4+ {[%clk 0:00:02]} 34. Kg2 {[%clk 0:00:28]}  Ba6 {[%clk 0:00:02]} 35. Rg7+ {[%clk 0:00:24]}  Kh5 {[%clk 0:00:02]} 36. Ne4 {[%clk 0:00:18]}  Bf1+ {[%clk 0:00:02]} 37. Kg1 {[%clk 0:00:18]}  Bh3 {[%clk 0:00:03]} 38. Rh7+ {[%clk 0:00:17]}  Kg4 {[%clk 0:00:02]} 39. Nf2+ {[%clk 0:00:16]}  Kf3 {[%clk 0:00:02]} 40. Rxh3 {[%clk 0:00:15]}  Ke2 {[%clk 0:00:00]} 41. Rh7 {[%clk 0:00:08]} 1-0


[Site "https://www.chess.com"]